bitfinex-derivatives/quotes_BNBF0:USTF0_20250603
["timestamp","ask_amount","ask_price","bid_price","bid_amount"]
[1748981485328,1.00839953,663.91,663.54,0.30141362]
[1748981485525,1.12346092,663.99,663.54,0.30141362]
[1748981485526,1.00839953,663.9,663.54,0.30141362]
[1748981485830,1.00839953,663.89,663.54,0.30141362]
[1748981486027,1.00839953,663.88,663.54,0.30141362]
[1748981486228,1.00910073,663.87,663.54,0.30141362]
[1748981486429,1.00910073,663.86,663.54,0.30141362]
[1748981486634,1.00910073,663.85,663.54,0.30141362]
[1748981486832,1.00910073,663.84,663.54,0.30141362]
[1748981487033,1.00910073,663.83,663.54,0.30141362]
[1748981487233,1.00910073,663.82,663.54,0.30141362]
[1748981487533,1.00910073,663.81,663.54,0.30141362]
[1748981487835,1.00910073,663.8,663.54,0.30141362]
[1748981488036,1.00910073,663.79,663.54,0.30141362]
[1748981488237,1.1232515,664.0,663.54,0.30141362]
[1748981488532,1.00964772,663.99,663.54,0.30141362]
[1748981488735,1.00964772,663.98,663.54,0.30141362]
[1748981488930,1.00964772,663.97,663.54,0.30141362]
[1748981489131,1.00964772,663.96,663.54,0.30141362]
[1748981489331,1.00964772,663.95,663.54,0.30141362]
[1748981489533,1.00964772,663.94,663.54,0.30141362]
[1748981489834,1.00964772,663.93,663.54,0.30141362]
[1748981490034,1.00964772,663.92,663.54,0.30141362]
[1748981490237,1.00944719,663.91,663.54,0.30141362]
[1748981490433,1.00944719,663.9,663.54,0.30141362]
[1748981490629,1.12273738,664.01,663.54,0.30141362]
[1748981490630,1.00944719,663.89,663.54,0.30141362]
[1748981490832,1.00944719,663.88,663.54,0.30141362]
[1748981491036,1.00944719,663.87,663.54,0.30141362]
[1748981491239,1.00944719,663.86,663.54,0.30141362]
[1748981491540,1.00944719,663.85,663.54,0.30141362]
[1748981491739,1.00944719,663.84,663.54,0.30141362]
[1748981491939,1.00944719,663.83,663.54,0.30141362]
[1748981492134,1.00944719,663.82,663.54,0.30141362]
[1748981492338,1.00944719,663.81,663.54,0.30141362]
[1748981492639,1.12273738,664.02,663.54,0.30141362]
[1748981492640,1.00944719,663.8,663.54,0.30141362]
[1748981492940,1.12273738,664.0,663.54,0.30141362]
[1748981493140,1.00943686,663.99,663.54,0.30141362]
[1748981493340,1.00943686,663.98,663.54,0.30141362]
[1748981493542,1.00943686,663.97,663.54,0.30141362]
[1748981493741,1.00943686,663.96,663.54,0.30141362]
[1748981494040,1.00936408,663.95,663.54,0.30141362]
[1748981494241,1.00936408,663.94,663.54,0.30141362]
[1748981494440,1.00936408,663.93,663.54,0.30141362]
[1748981494640,1.00936408,663.92,663.54,0.30141362]
[1748981494842,1.00936408,663.91,663.54,0.30141362]
[1748981495038,1.00936408,663.9,663.54,0.30141362]
[1748981495239,1.00936408,663.89,663.54,0.30141362]
[1748981495435,1.00936408,663.88,663.54,0.30141362]
[1748981495640,1.00936408,663.87,663.54,0.30141362]
[1748981495835,1.00936408,663.86,663.54,0.30141362]
[1748981496039,1.12240551,664.07,663.54,0.30141362]
[1748981496040,1.00936408,663.85,663.54,0.30141362]
[1748981496241,1.00936408,663.84,663.54,0.30141362]
[1748981496542,1.00936408,663.83,663.54,0.30141362]
[1748981496842,1.00936408,663.82,663.54,0.30141362]
[1748981497042,1.00936408,663.81,663.54,0.30141362]
[1748981497242,1.00936408,663.8,663.54,0.30141362]
[1748981497446,1.12240551,664.07,663.54,0.30141362]
[1748981497642,1.00916982,664.06,663.54,0.30141362]
[1748981497938,1.00913375,664.05,663.54,0.30141362]
[1748981498144,1.00913375,664.04,663.54,0.30141362]
[1748981498442,1.00913375,664.03,663.54,0.30141362]
[1748981498638,1.00913375,664.02,663.54,0.30141362]
[1748981498840,1.00913375,664.01,663.54,0.30141362]
[1748981499041,1.00913375,664.0,663.54,0.30141362]
[1748981499343,1.00913375,663.99,663.54,0.30141362]
[1748981499638,1.12212846,664.08,663.54,0.30141362]
[1748981499639,1.00913375,663.98,663.54,0.30141362]
[1748981499838,1.00913375,663.97,663.54,0.30141362]
[1748981500038,1.00913375,663.96,663.54,0.30141362]
[1748981500238,1.00913375,663.95,663.54,0.30141362]
[1748981500438,1.00913375,663.94,663.54,0.30141362]
[1748981500642,1.00913375,663.93,663.54,0.30141362]
[1748981500842,1.00913375,663.92,663.54,0.30141362]
[1748981501043,1.00913375,663.91,663.54,0.30141362]
[1748981501241,1.00913375,663.9,663.54,0.30141362]
[1748981501544,1.00913375,663.89,663.54,0.30141362]
[1748981501745,1.00913375,663.88,663.54,0.30141362]
[1748981501946,1.00861088,663.87,663.54,0.30141362]
[1748981502146,1.00861088,663.86,663.54,0.30141362]
[1748981502344,1.12192869,664.08,663.54,0.30141362]
[1748981502345,1.00861088,663.85,663.54,0.30141362]
[1748981502547,1.00861088,663.84,663.54,0.30141362]
[1748981502846,1.00861088,663.83,663.54,0.30141362]
[1748981503041,1.00861088,663.82,663.54,0.30141362]
[1748981503241,1.00861088,663.81,663.54,0.30141362]
[1748981503440,1.00861088,663.8,663.54,0.30141362]
[1748981503641,1.00861088,663.79,663.54,0.30141362]
[1748981503845,1.12192869,664.08,663.54,0.30141362]
[1748981504046,1.00853173,664.07,663.54,0.30141362]
[1748981504246,1.12192869,664.08,663.54,0.30141362]
[1748981504247,1.00853173,664.06,663.54,0.30141362]
[1748981504542,1.00853173,664.05,663.54,0.30141362]
[1748981504745,1.00853173,664.04,663.54,0.30141362]
[1748981504950,1.00853173,664.03,663.54,0.30141362]
[1748981505247,1.00853173,664.02,663.54,0.30141362]
[1748981505548,1.00853173,664.01,663.54,0.30141362]
[1748981505747,1.00853173,664.0,663.54,0.30141362]
[1748981505942,1.00851184,663.99,663.54,0.30141362]
[1748981506139,1.00851184,663.98,663.54,0.30141362]
[1748981506339,1.12183847,664.05,663.54,0.30141362]
[1748981506340,1.00845902,663.97,663.54,0.30141362]
[1748981506544,1.12183952,664.05,663.54,0.30141362]
[1748981506545,1.00845902,663.96,663.54,0.30141362]
[1748981506747,1.00845902,663.95,663.54,0.30141362]
[1748981507042,1.12183952,664.05,663.54,0.30141362]
[1748981507043,1.00845902,663.94,663.54,0.30141362]
[1748981507246,1.00845902,663.93,663.54,0.30141362]
[1748981507445,1.00845902,663.92,663.54,0.30141362]
[1748981507640,1.00845902,663.91,663.54,0.30141362]
[1748981507840,1.00845902,663.9,663.54,0.30141362]
[1748981508045,1.00845902,663.89,663.54,0.30141362]
[1748981508344,1.00845902,663.88,663.54,0.30141362]
[1748981508547,1.00845902,663.87,663.54,0.30141362]
[1748981508744,1.00845902,663.86,663.54,0.30141362]
[1748981508941,1.00845902,663.85,663.54,0.30141362]
[1748981509140,1.00845902,663.84,663.54,0.30141362]
[1748981509447,3.73577957,664.85,663.54,0.30141362]
[1748981509448,1.00845902,663.83,663.54,0.30141362]
[1748981509747,1.00845902,663.82,663.54,0.30141362]
[1748981509947,1.12181296,664.02,663.54,0.30141362]
[1748981510148,1.00841843,664.01,663.54,0.30141362]
[1748981510348,1.00841843,664.0,663.54,0.30141362]
[1748981510662,1.00841843,663.99,663.54,0.30141362]
[1748981510849,1.00841843,663.98,663.54,0.30141362]
[1748981511049,1.00841843,663.97,663.54,0.30141362]
[1748981511252,1.00841843,663.96,663.54,0.30141362]
[1748981511444,1.00841843,663.95,663.54,0.30141362]
[1748981511645,1.00841843,663.94,663.54,0.30141362]
[1748981511846,1.00841843,663.93,663.54,0.30141362]
[1748981512049,1.00841843,663.92,663.56,0.47859685]
[1748981512251,1.00841843,663.91,663.57,0.3014]
[1748981512452,1.00841843,663.9,663.57,0.3014]
[1748981512648,1.00841843,663.89,663.57,0.77999685]
[1748981512847,1.00841843,663.88,663.57,0.77999685]
[1748981513053,1.00841843,663.87,663.57,0.77999685]
[1748981513253,1.00841843,663.86,663.57,0.77999685]
[1748981513553,1.00841843,663.85,663.57,0.3014]
[1748981513854,1.01010166,663.84,663.57,0.77999685]
[1748981514054,1.01010166,663.83,663.57,0.77999685]
[1748981514353,1.12180826,664.03,663.57,0.3014]
[1748981514555,1.01011744,664.02,663.57,0.3014]
[1748981514747,1.01011744,664.01,663.57,0.3014]
[1748981514952,1.01011744,664.0,663.57,0.3014]
[1748981515148,1.01011744,663.99,663.57,0.3014]
[1748981515352,1.01011744,663.98,663.57,0.3014]
[1748981515554,1.01011744,663.97,663.57,0.3014]
[1748981515754,1.01011744,663.96,663.57,0.3014]
[1748981516054,1.01011744,663.95,663.57,0.3014]
[1748981516254,1.01011744,663.94,663.57,0.77999685]
[1748981516557,1.01011744,663.93,663.58,0.47859685]
[1748981516755,1.01011744,663.92,663.59,0.30139091]
[1748981517055,1.01011744,663.91,663.59,0.30139091]
[1748981517249,1.01011744,663.9,663.59,0.30139091]
[1748981517452,1.01011744,663.89,663.59,0.30139091]
[1748981517651,1.01034194,663.88,663.59,0.30139091]
[1748981517856,1.01034194,663.87,663.59,0.77998776]
[1748981518056,1.01034194,663.86,663.59,0.77998776]
[1748981518258,1.01034194,663.85,663.59,0.77998776]
[1748981518458,1.01034194,663.84,663.62,0.47859685]
[1748981518657,1.12157579,664.03,663.63,0.30137275]
[1748981518658,1.01034194,663.83,663.63,0.30137275]
[1748981518857,1.12157579,664.03,663.63,0.30137275]
[1748981519055,1.01028353,664.02,663.63,0.30137275]
[1748981519259,1.01028353,664.01,663.63,0.30137275]
[1748981519455,1.01028353,664.0,663.63,0.30137275]
[1748981519656,1.01028353,663.99,663.63,0.30137275]
[1748981519861,1.01028353,663.98,663.63,0.30137275]
[1748981520054,1.01028353,663.97,663.63,0.30137275]
[1748981520260,1.01028353,663.96,663.63,0.30137275]
[1748981520461,1.01028353,663.95,663.63,0.30137275]
[1748981520657,1.01028353,663.94,663.63,0.30137275]
[1748981520858,1.49431183,664.16,663.63,0.30137275]
[1748981521062,1.12153981,664.04,663.63,0.30137275]
[1748981521262,1.01043502,664.03,663.63,0.30137275]
[1748981521468,1.01043502,664.02,663.63,0.30137275]
[1748981521661,1.01043502,664.01,663.63,0.30137275]
[1748981521866,1.01043502,664.0,663.63,0.30137275]
[1748981522065,1.01043502,663.99,663.63,0.30137275]
[1748981522260,1.01043502,663.98,663.63,0.30137275]
[1748981522463,1.01043502,663.97,663.63,0.30137275]
[1748981522665,1.01043502,663.96,663.63,0.30137275]
[1748981522865,1.01043502,663.95,663.63,0.30137275]
[1748981523066,1.01043502,663.94,663.63,0.30137275]
[1748981523265,1.01043502,663.93,663.63,0.30137275]
[1748981523465,1.01043502,663.92,663.63,0.30137275]
[1748981523670,1.01043502,663.91,663.63,0.30137275]
[1748981523861,1.01043502,663.9,663.63,0.30137275]
[1748981524060,1.01043502,663.89,663.63,0.30137275]
[1748981524263,1.01043502,663.88,663.63,0.30137275]
[1748981524467,1.01043502,663.87,663.63,0.30137275]
[1748981524662,1.01043502,663.86,663.63,0.30137275]
[1748981524861,1.01043502,663.85,663.63,0.30137275]
[1748981525064,1.01043502,663.84,663.63,0.30137275]
[1748981525264,1.49538642,664.18,663.63,0.30137275]
[1748981525265,1.01043502,663.83,663.63,0.30137275]
[1748981525467,1.12153981,664.04,663.63,0.30137275]
[1748981525468,1.01043502,663.82,663.63,0.30137275]
[1748981525767,1.01043502,663.81,663.63,0.30137275]
[1748981525962,1.12153981,664.06,663.63,0.30137275]
[1748981526165,1.01177373,664.05,663.63,0.30137275]
[1748981526367,1.01177373,664.04,663.63,0.30137275]
[1748981526565,1.01177373,664.03,663.63,0.30137275]
[1748981526764,1.01177373,664.02,663.63,0.30137275]
[1748981526963,1.01177373,664.01,663.63,0.30137275]
[1748981527165,1.01177373,664.0,663.63,0.30137275]
[1748981527362,1.01177373,663.99,663.63,0.30137275]
[1748981527564,1.01177373,663.98,663.63,0.30137275]
[1748981527870,1.49538642,664.19,663.63,0.30137275]
[1748981528074,1.12180076,664.05,663.63,0.30137275]
[1748981528272,1.01185469,664.04,663.63,0.30137275]
[1748981528470,1.01185469,664.03,663.63,0.30137275]
[1748981528672,1.01185469,664.02,663.63,0.30137275]
[1748981528869,1.01185469,664.01,663.63,0.30137275]
[1748981529068,1.01185469,664.0,663.63,0.30137275]
[1748981529273,1.01185469,663.99,663.63,0.30137275]
[1748981529467,1.01185469,663.98,663.63,0.30137275]
[1748981529670,1.01185469,663.97,663.63,0.30137275]
[1748981529872,1.01185469,663.96,663.63,0.30137275]
[1748981530173,1.01185469,663.95,663.63,0.30137275]
[1748981530368,1.12180076,664.05,663.63,0.30137275]
[1748981530369,1.01185469,663.94,663.63,0.30137275]
[1748981530574,1.01185469,663.93,663.63,0.30137275]
[1748981530869,1.01185469,663.92,663.63,0.30137275]
[1748981531173,1.01185469,663.91,663.63,0.30137275]
[1748981531372,1.01185469,663.9,663.63,0.30137275]
[1748981531571,1.01185469,663.89,663.63,0.30137275]
[1748981531768,1.01185469,663.88,663.63,0.30137275]
[1748981531973,1.0120327,663.87,663.63,0.30137275]
[1748981532174,1.0120327,663.86,663.63,0.30137275]
[1748981532472,1.0120327,663.85,663.63,0.30137275]
[1748981532666,1.0120327,663.84,663.63,0.30137275]
[1748981532869,1.0120327,663.83,663.63,0.30137275]
[1748981533071,1.0120327,663.82,663.63,0.30137275]
[1748981533272,1.12205796,664.04,663.63,0.30137275]
[1748981533273,1.0120327,663.81,663.63,0.30137275]
[1748981533471,1.0120327,663.8,663.63,0.30137275]
[1748981533675,1.0120327,663.79,663.63,0.30137275]
[1748981533873,1.12205796,664.04,663.63,0.30137275]
[1748981534079,1.01219815,664.03,663.63,0.30137275]
[1748981534281,1.01219815,664.02,663.63,0.30137275]
[1748981534579,1.01219815,664.01,663.63,0.30137275]
[1748981534776,1.01219815,664.0,663.63,0.30137275]
[1748981534976,1.01219815,663.99,663.63,0.30137275]
[1748981535274,1.01219815,663.98,663.63,0.30137275]
[1748981535573,3.73577957,664.78,663.64,0.47859685]
[1748981535574,1.01219815,663.97,663.64,0.47859685]
[1748981535774,1.01219815,663.96,663.65,0.30136367]
[1748981535979,1.12205796,663.99,663.65,0.30136367]
[1748981535980,1.01219815,663.95,663.65,0.30136367]
[1748981536176,1.01219815,663.94,663.65,0.30136367]
[1748981536376,1.01219815,663.93,663.65,0.30136367]
[1748981536578,1.01219815,663.92,663.65,0.30136367]
[1748981536778,1.01219815,663.91,663.65,0.30136367]
[1748981537081,1.01219815,663.9,663.65,0.30136367]
[1748981537277,1.12205796,663.99,663.65,0.30136367]
[1748981537278,1.01219815,663.89,663.65,0.30136367]
[1748981537475,1.01219815,663.88,663.65,0.30136367]
[1748981537675,1.01219815,663.87,663.65,0.30136367]
[1748981537880,1.01219815,663.86,663.65,0.30136367]
[1748981538081,1.01219815,663.85,663.65,0.30136367]
[1748981538279,1.01219815,663.84,663.65,0.30136367]
[1748981538476,1.01219815,663.83,663.65,0.30136367]
[1748981538678,1.01219815,663.82,663.65,0.30136367]
[1748981538875,1.01219815,663.81,663.65,0.30136367]
[1748981539082,1.01219815,663.8,663.65,0.30136367]
[1748981539282,1.01219815,663.79,663.65,0.30136367]
[1748981539485,3.73577957,664.62,663.65,0.30136367]
[1748981539486,1.01219815,663.78,663.65,0.30136367]
[1748981539783,1.49538642,664.13,663.65,0.30136367]
[1748981539784,1.01219815,663.77,663.65,0.30136367]
[1748981539985,1.12205796,664.0,663.65,0.30136367]
[1748981540184,1.01290131,663.99,663.65,0.30136367]
[1748981540385,1.01290131,663.98,663.65,0.30136367]
[1748981540580,1.12205796,664.0,663.65,0.30136367]
[1748981540581,1.01290131,663.97,663.65,0.30136367]
[1748981540779,1.01290131,663.96,663.65,0.30136367]
[1748981540984,1.01290131,663.95,663.65,0.30136367]
[1748981541185,1.01290131,663.94,663.65,0.30136367]
[1748981541485,1.01290131,663.93,663.65,0.30136367]
[1748981541683,1.01290131,663.92,663.65,0.30136367]
[1748981541880,1.01290131,663.91,663.65,0.30136367]
[1748981542081,1.01290131,663.9,663.65,0.30136367]
[1748981542280,1.01290131,663.89,663.65,0.30136367]
[1748981542484,1.01290131,663.88,663.65,0.30136367]
[1748981542678,1.01290131,663.87,663.65,0.30136367]
[1748981542878,1.01290131,663.86,663.65,0.30136367]
[1748981543077,1.01290131,663.85,663.65,0.30136367]
[1748981543279,1.01290131,663.84,663.65,0.30136367]
[1748981543484,1.12205796,663.96,663.65,0.30136367]
[1748981543485,1.01290131,663.83,663.65,0.30136367]
[1748981543679,1.01290131,663.82,663.65,0.30136367]
[1748981543882,1.0134583,663.81,663.65,0.30136367]
[1748981544088,1.0134583,663.8,663.65,0.30136367]
[1748981544285,1.0134583,663.79,663.65,0.30136367]
[1748981544484,1.12380015,663.96,663.65,0.30136367]
[1748981544485,1.0134583,663.78,663.65,0.30136367]
[1748981544683,1.0134583,663.77,663.65,0.30136367]
[1748981544885,1.0134583,663.76,663.65,0.30136367]
[1748981545087,1.0134583,663.75,663.65,0.30136367]
[1748981545285,1.12380015,663.97,663.65,0.30136367]
[1748981545486,1.01348195,663.96,663.65,0.30136367]
[1748981545685,1.01348195,663.95,663.65,0.30136367]
[1748981545886,1.01348195,663.94,663.65,0.30136367]
[1748981546086,1.01348195,663.93,663.65,0.30136367]
[1748981546382,1.01348195,663.92,663.65,0.30136367]
[1748981546588,1.01348195,663.91,663.65,0.30136367]
[1748981546788,1.01348195,663.9,663.65,0.30136367]
[1748981546989,1.01348195,663.89,663.65,0.30136367]
[1748981547186,1.01348195,663.88,663.65,0.30136367]
[1748981547383,1.01348195,663.87,663.65,0.30136367]
[1748981547582,1.01348195,663.86,663.65,0.30136367]
[1748981547779,1.01365764,663.85,663.65,0.30136367]
[1748981547986,1.01365764,663.84,663.65,0.30136367]
[1748981548287,1.01365764,663.83,663.65,0.30136367]
[1748981548488,1.01365764,663.82,663.65,0.30136367]
[1748981548686,1.01365764,663.81,663.65,0.30136367]
[1748981548885,1.01365764,663.8,663.65,0.30136367]
[1748981549080,1.01365764,663.79,663.65,0.30136367]
[1748981549284,1.01365764,663.78,663.65,0.30136367]
[1748981549485,1.01365764,663.77,663.65,0.30136367]
[1748981549688,1.01365764,663.76,663.65,0.30136367]
[1748981549989,1.01365764,663.75,663.65,0.30136367]
[1748981550290,1.01365764,663.74,663.65,0.30136367]
[1748981550486,1.01365764,663.73,663.65,0.30136367]
[1748981550688,1.12374423,663.93,663.65,0.30136367]
[1748981550888,1.01319607,663.92,663.65,0.30136367]
[1748981551089,1.01319607,663.91,663.65,0.30136367]
[1748981551288,1.01319607,663.9,663.65,0.30136367]
[1748981551483,1.01319607,663.89,663.65,0.30136367]
[1748981551689,1.01319607,663.88,663.65,0.30136367]
[1748981551891,1.01319711,663.87,663.65,0.30136367]
[1748981552085,1.01319711,663.86,663.65,0.30136367]
[1748981552290,1.01319711,663.85,663.65,0.30136367]
[1748981552493,1.01319711,663.84,663.65,0.30136367]
[1748981552791,1.01319711,663.83,663.65,0.30136367]
[1748981552992,1.01319711,663.82,663.65,0.30136367]
[1748981553294,1.01319711,663.81,663.65,0.30136367]
[1748981553592,1.01319711,663.8,663.65,0.30136367]
[1748981553787,1.01319711,663.79,663.65,0.30136367]
[1748981553990,1.01319711,663.78,663.65,0.30136367]
[1748981554191,1.01319711,663.77,663.65,0.30136367]
[1748981554393,1.01319711,663.76,663.65,0.30136367]
[1748981554592,1.01319711,663.75,663.65,0.30136367]
[1748981554792,1.01319711,663.74,663.65,0.30136367]
[1748981555093,1.12361088,663.93,663.65,0.30136367]
[1748981555094,1.01319711,663.73,663.65,0.30136367]
[1748981555287,1.12361088,663.93,663.65,0.30136367]
[1748981555490,1.0089222,663.92,663.65,0.30136367]
[1748981555693,1.00891963,663.91,663.65,0.30136367]
[1748981555987,1.12345298,663.88,663.65,0.30136367]
[1748981556193,1.00891844,663.87,663.65,0.30136367]
[1748981556390,1.00891844,663.86,663.65,0.30136367]
[1748981556693,1.00891844,663.85,663.65,0.30136367]
[1748981556990,3.73577957,664.58,663.65,0.30136367]
[1748981556991,1.00891844,663.84,663.65,0.30136367]
[1748981557195,3.73577957,664.57,663.65,0.30136367]
[1748981557196,1.00891844,663.83,663.65,0.30136367]
[1748981557395,1.00891844,663.82,663.65,0.30136367]
[1748981557590,1.00891844,663.81,663.65,0.30136367]
[1748981557796,1.00891844,663.8,663.65,0.30136367]
[1748981557997,1.00891844,663.79,663.65,0.30136367]
[1748981558197,3.73577957,664.59,663.65,0.30136367]
[1748981558198,1.00891844,663.78,663.65,0.30136367]
[1748981558394,1.00891844,663.77,663.65,0.30136367]
[1748981558593,1.00891844,663.76,663.65,0.30136367]
[1748981558792,1.12345298,663.9,663.65,0.30136367]
[1748981558793,1.00891844,663.75,663.65,0.30136367]
[1748981558991,1.00891844,663.74,663.65,0.30136367]
[1748981559195,1.00891844,663.73,663.65,0.30136367]
[1748981559397,1.00891844,663.72,663.65,0.30136367]
[1748981559697,1.00855532,663.71,663.65,0.30136367]
[1748981559890,1.00855532,663.7,663.65,0.30136367]
[1748981560089,1.00855532,663.69,663.65,0.30136367]
[1748981560294,1.12257848,663.9,663.65,0.30136367]
[1748981560590,1.00844509,663.89,663.65,0.30136367]
[1748981560791,1.00844509,663.88,663.65,0.30136367]
[1748981560992,1.00844509,663.87,663.65,0.30136367]
[1748981561200,1.00844509,663.86,663.65,0.30136367]
[1748981561397,1.00844509,663.85,663.65,0.30136367]
[1748981561599,3.73577957,664.7,663.65,0.30136367]
[1748981561600,1.00844509,663.84,663.65,0.30136367]
[1748981561797,1.00844509,663.83,663.65,0.30136367]
[1748981561992,1.00844509,663.82,663.65,0.30136367]
[1748981562196,1.00844509,663.81,663.65,0.30136367]
[1748981562396,1.00844509,663.8,663.65,0.30136367]
[1748981562596,1.00844509,663.79,663.65,0.30136367]
[1748981562896,1.00844509,663.78,663.65,0.30136367]
[1748981563097,1.00844509,663.77,663.65,0.30136367]
[1748981563297,1.00844509,663.76,663.65,0.30136367]
[1748981563596,1.00763443,663.75,663.65,0.30136367]
[1748981563798,1.00763443,663.74,663.65,0.30136367]
[1748981563994,1.00763443,663.73,663.65,0.30136367]
[1748981564299,3.73577957,664.66,663.65,0.30136367]
[1748981564300,1.00763443,663.72,663.65,0.30136367]
[1748981564500,1.00763443,663.71,663.65,0.30136367]
[1748981564695,1.00763443,663.7,663.65,0.30136367]
[1748981564894,1.00763443,663.69,663.65,0.30136367]
[1748981565098,1.00763443,663.68,663.65,0.30136367]
[1748981565300,1.00763443,663.67,663.65,0.30136367]
[1748981565498,1.12178065,663.9,663.65,0.30136367]
[1748981565699,1.0073206,663.89,663.65,0.30136367]
[1748981565896,1.0073206,663.88,663.65,0.30136367]
[1748981566203,1.0073206,663.87,663.65,0.30136367]
[1748981566401,1.0073206,663.86,663.65,0.30136367]
[1748981566601,2.24146774,664.17,663.65,0.30136367]
[1748981566902,3.73577957,664.7,663.65,0.30136367]
[1748981569199,1.12120673,663.88,663.65,0.30136367]
[1748981569396,1.00712092,663.87,663.65,0.30136367]
[1748981569599,1.00712092,663.86,663.65,0.30136367]
[1748981569902,1.49494231,664.02,663.65,0.30136367]
[1748981570104,1.12119074,663.89,663.65,0.30136367]
[1748981570299,1.00731675,663.88,663.65,0.30136367]
[1748981570500,1.00731675,663.87,663.65,0.30136367]
[1748981570705,1.00731675,663.86,663.65,0.30136367]
[1748981570903,1.00731675,663.85,663.65,0.30136367]
[1748981571099,1.00731675,663.84,663.65,0.30136367]
[1748981571300,1.00731675,663.83,663.65,0.30136367]
[1748981571499,1.00731675,663.82,663.65,0.30136367]
[1748981571703,1.00731675,663.81,663.65,0.30136367]
[1748981572000,1.00731675,663.8,663.65,0.30136367]
[1748981572205,1.00731675,663.79,663.65,0.30136367]
[1748981572503,3.73735579,664.72,663.65,0.30136367]
[1748981572504,1.00731675,663.78,663.65,0.30136367]
[1748981572697,1.00731675,663.77,663.65,0.30136367]
[1748981572902,1.00731675,663.76,663.65,0.30136367]
[1748981573205,1.00731675,663.75,663.65,0.30136367]
[1748981573403,1.00731675,663.74,663.65,0.30136367]
[1748981573706,1.00731675,663.73,663.65,0.30136367]
[1748981574005,1.00731675,663.72,663.65,0.30136367]
[1748981574206,1.00643313,663.71,663.65,0.30136367]
[1748981574406,1.00643313,663.7,663.65,0.30136367]
[1748981574607,1.00643313,663.69,663.65,0.30136367]
[1748981574906,1.00643313,663.68,663.65,0.30136367]
[1748981575105,1.00643313,663.67,663.65,0.30136367]
[1748981575405,1.00643313,663.66,663.65,0.30136367]
[1748981578209,1.12038884,663.91,663.65,0.30136367]
[1748981578410,1.00596024,663.9,663.65,0.30136367]
[1748981578710,1.00596028,663.89,663.65,0.30136367]
[1748981578908,1.00596028,663.88,663.65,0.30136367]
[1748981579109,1.00596028,663.87,663.65,0.30136367]
[1748981579309,1.11990183,663.88,663.65,0.30136367]
[1748981579310,1.00596028,663.86,663.65,0.30136367]
[1748981579506,1.00596028,663.85,663.65,0.30136367]
[1748981579708,1.00596028,663.84,663.65,0.30136367]
[1748981579907,1.00596028,663.83,663.65,0.30136367]
[1748981580212,1.00596028,663.82,663.65,0.30136367]
[1748981580411,1.00596028,663.81,663.65,0.30136367]
[1748981580612,1.00596028,663.8,663.65,0.30136367]
[1748981580813,1.00596028,663.79,663.65,0.30136367]
[1748981581110,1.00596028,663.78,663.65,0.30136367]
[1748981581311,1.00587191,663.77,663.65,0.30136367]
[1748981581511,3.73735579,664.56,663.65,0.30136367]
[1748981581512,1.00587191,663.76,663.65,0.30136367]
[1748981581711,1.00587191,663.75,663.65,0.30136367]
[1748981581908,1.00587191,663.74,663.65,0.30136367]
[1748981582107,1.00587191,663.73,663.65,0.30136367]
[1748981582312,1.00587191,663.72,663.65,0.30136367]
[1748981582508,1.00587191,663.71,663.65,0.30136367]
[1748981582707,1.00587191,663.7,663.65,0.30136367]
[1748981582913,1.00587191,663.69,663.65,0.30136367]
[1748981583112,1.00587191,663.68,663.65,0.30136367]
[1748981583310,1.11980399,663.9,663.65,0.30136367]
[1748981583511,1.0054546,663.89,663.65,0.30136367]
[1748981583709,1.0054546,663.88,663.65,0.30136367]
[1748981583908,1.0054546,663.87,663.65,0.30136367]
[1748981584108,1.0054546,663.86,663.65,0.30136367]
[1748981584410,1.0054546,663.85,663.65,0.30136367]
[1748981584612,1.0054546,663.84,663.65,0.30136367]
[1748981584808,1.0054546,663.83,663.65,0.30136367]
[1748981585009,1.0054546,663.82,663.65,0.30136367]
[1748981585214,1.00542608,663.81,663.65,0.30136367]
[1748981585414,1.00542608,663.8,663.65,0.30136367]
[1748981585613,1.00542608,663.79,663.65,0.30136367]
[1748981585817,1.00542608,663.78,663.65,0.30136367]
[1748981586111,1.00542608,663.77,663.65,0.30136367]
[1748981586317,1.00542608,663.76,663.65,0.30136367]
[1748981586516,1.00542608,663.75,663.65,0.30136367]
[1748981586817,1.00542608,663.74,663.65,0.30136367]
[1748981587012,1.00542608,663.73,663.65,0.30136367]
[1748981587216,1.11906835,663.95,663.65,0.30136367]
[1748981587415,1.0059086,663.94,663.65,0.30136367]
[1748981587717,1.0059086,663.93,663.65,0.30136367]
[1748981587915,1.0059086,663.92,663.65,0.30136367]
[1748981588112,1.0059086,663.91,663.65,0.30136367]
[1748981588315,1.0059086,663.9,663.65,0.30136367]
[1748981588513,1.0059086,663.89,663.65,0.30136367]
[1748981588714,1.0059086,663.88,663.65,0.30136367]
[1748981589015,1.49494231,664.08,663.65,0.30136367]
[1748981589218,1.11916317,663.96,663.65,0.30136367]
[1748981589413,1.0059662,663.95,663.65,0.30136367]
[1748981589617,1.0059662,663.94,663.65,0.30136367]
[1748981589818,1.0059662,663.93,663.65,0.30136367]
[1748981590115,1.0059662,663.92,663.65,0.30136367]
[1748981590318,1.11916317,663.95,663.65,0.30136367]
[1748981590319,1.0059662,663.91,663.65,0.30136367]
[1748981590519,1.0059662,663.9,663.65,0.30136367]
[1748981590718,1.0059662,663.89,663.65,0.30136367]